fUST/lending_fUST_20250211
["ID","MTS","AMOUNT","RATE_DAILY","PERIOD"]
[352626297,1739205053081,-683.54,0.00013972,2]
[352626298,1739205053090,-5371.01,0.00013972,2]
[352626299,1739205053100,-1641.74,0.00013972,2]
[352626300,1739205053109,-513.94,0.00013972,2]
[352626301,1739205053118,-506.41,0.00013972,2]
[352626302,1739205053128,-618.63,0.00013972,2]
[352626303,1739205053137,-897.18,0.00013972,2]
[352626304,1739205053148,-1241.71903458,0.00013972,2]
[352626305,1739205053241,-500.0,0.00010958,2]
[352626306,1739205053250,-500.0,0.00011095,2]
[352626307,1739205053260,-993.03,0.00013424,2]
[352626308,1739205053270,-993.03,0.00013561,2]
[352626309,1739205053368,-151.0,0.00013676,2]
[352626310,1739205053377,-993.03,0.00013698,2]
[352626311,1739205053387,-993.03,0.00013835,2]
[352626312,1739205053397,-70.02096542,0.00013972,2]
[352626313,1739205053407,-2733.22,0.00013972,2]
[352626314,1739205053416,-634.11,0.00013972,2]
[352626315,1739205053426,-1409.56,0.00013972,2]
[352626316,1739205053436,-540.4,0.00013972,2]
[352626317,1739205053446,-1538.23,0.00013972,2]
[352626318,1739205053455,-5570.95,0.00013972,2]
[352626319,1739205053465,-709.88,0.00013972,2]
[352626320,1739205053475,-1169.66,0.00013972,2]
[352626321,1739205053484,-993.03,0.00013972,2]
[352626322,1739205053494,-12789.08247687,0.00013993,2]
[352626323,1739205053504,-1269.29086491,0.00013995,5]
[352626324,1739205053514,-12789.08247687,0.00013995,2]
[352626325,1739205053523,-12789.08247687,0.00013996,2]
[352626326,1739205053533,-11240.0,0.00014,2]
[352626327,1739205053541,-250.0,0.00014025,2]
[352626328,1739205053551,-204.58,0.00014025,2]
[352626329,1739205053560,-354.8426056,0.00014055,2]
[352626330,1739205053570,-354.8426056,0.00014055,2]
[352626331,1739205053579,-354.8426056,0.00014055,2]
[352626332,1739205053589,-354.8426056,0.00014055,2]
[352626333,1739205053598,-354.8426056,0.00014055,2]
[352626334,1739205053608,-707.5762673,0.00014055,2]
[352626335,1739205053621,-335.24,0.0001406,2]
[352626336,1739205053631,-4417.70884376,0.00014109,5]
[352626337,1739205053641,-153.371361,0.00014109,2]
[352626338,1739205053650,-151.0,0.00014109,2]
[352626339,1739205053660,-690.25412291,0.00014109,2]
[352626340,1739205053669,-611.52825553,0.00014109,2]
[352626341,1739205053678,-175.03620436,0.00014109,2]
[352626342,1739205053688,-703.15742406,0.00014109,2]
[352626343,1739205053698,-562.95899593,0.00014109,2]
[352626344,1739205053713,-699.27748031,0.00014109,2]
[352626345,1739205053723,-402.29,0.00014109,2]
[352626346,1739205053733,-599.76293675,0.00014109,2]
[352626347,1739205053743,-1233.90041971,0.00014109,2]
[352626349,1739205575319,5000.15,8.214e-05,2]
[352626350,1739205600401,500.0,0.000155,90]
[352626351,1739205678083,377.35563207,0.00014,60]
[352626352,1739205958096,-678.36707999,9.696e-05,2]
[352626353,1739206035139,-1731.90270529,9.696e-05,2]
[352626354,1739206035159,-660.8924,9.794e-05,2]
[352626355,1739206035182,-4232.1606356,0.00010094,2]
[352626356,1739206035202,-400.0,0.00010685,2]
[352626357,1739206035222,-1017.81837075,0.00010825,2]
[352626358,1739206035244,-300.0,0.00010857,2]
[352626359,1739206035264,-3106.08361598,0.00010858,2]
[352626360,1739206035284,-380.66390096,0.0001094,2]
[352626361,1739206035304,-250.53688382,0.00010951,2]
[352626362,1739206035325,-500.0,0.00010958,2]
[352626363,1739206035345,-500.0,0.00010958,2]
[352626364,1739206035366,-500.0,0.00010958,2]
[352626365,1739206035386,-9.03870781,0.00010958,2]
[352626366,1739206047089,-490.96129219,0.00010958,2]
[352626367,1739206047114,-500.0,0.00010958,2]
[352626368,1739206047136,-369.42695531,0.00010958,2]
[352626369,1739206051104,-130.57304469,0.00010958,2]
[352626370,1739206051125,-500.0,0.00010958,2]
[352626371,1739206051146,-500.0,0.00010958,2]
[352626372,1739206051168,-500.0,0.00010958,2]
[352626373,1739206051191,-500.0,0.00010958,2]
[352626374,1739206051212,-500.0,0.00010958,2]
[352626375,1739206051234,-500.0,0.00010958,2]
[352626376,1739206051255,-500.0,0.00010958,2]
[352626377,1739206051277,-500.0,0.00010958,2]
[352626378,1739206051298,-500.0,0.00010958,2]
[352626379,1739206051320,-500.0,0.00010958,2]
[352626380,1739206051342,-237.98190579,0.00010958,2]
[352626437,1739206232877,-293.3193172,0.00010464,2]
[352626439,1739206232887,-216.89236338,0.00010958,2]
[352626452,1739206238546,-45.12573083,0.00010958,2]
[352626453,1739206238555,-500.0,0.00010958,2]
[352626454,1739206238565,-555.21709705,0.00010958,2]
[352626455,1739206238575,-500.0,0.00010958,2]
[352626456,1739206238584,-500.0,0.00010958,2]
[352626457,1739206238594,-500.0,0.00010958,2]
[352626458,1739206238603,-500.0,0.00010958,2]
[352626459,1739206238612,-328.50623434,0.00010958,2]
[352626460,1739206238622,-500.0,0.00010958,2]
[352626461,1739206238631,-500.0,0.00010958,2]
[352626462,1739206238640,-500.0,0.00010958,2]
[352626463,1739206238649,-500.0,0.00010958,2]
[352626464,1739206238659,-500.0,0.00010958,2]
[352626465,1739206238669,-500.0,0.00010958,2]
[352626466,1739206238679,-500.0,0.00010958,2]
[352626467,1739206238688,-500.0,0.00010958,2]
[352626468,1739206238698,-271.99392976,0.00010958,2]
[352626469,1739206238707,-500.0,0.00010958,2]
[352626470,1739206238717,-500.0,0.00010958,2]
[352626471,1739206238727,-500.0,0.00010958,2]
[352626472,1739206238736,-500.0,0.00010958,2]
[352626473,1739206238749,-500.0,0.00010958,2]
[352626474,1739206238761,-500.0,0.00010958,2]
[352626475,1739206238771,-500.0,0.00010958,2]
[352626476,1739206238780,-500.0,0.00010958,2]
[352626477,1739206238789,-500.0,0.00010958,2]
[352626478,1739206238799,-500.0,0.00010958,2]
[352626479,1739206238808,-500.0,0.00010958,2]
[352626480,1739206238818,-358.17523297,0.00010958,2]
[352626481,1739206238830,-500.0,0.00010958,2]
[352626482,1739206238839,-500.0,0.00010958,2]
[352626483,1739206238849,-500.0,0.00010958,2]
[352626484,1739206238859,-500.0,0.00010958,2]
[352626485,1739206238868,-618.78695244,0.00010958,2]
[352626486,1739206238878,-456.5895154,0.00010958,2]
[352626487,1739206238887,-500.0,0.00010958,2]
[352626488,1739206238896,-500.0,0.00010958,2]
[352626489,1739206238906,-500.0,0.00010958,2]
[352626490,1739206238915,-500.0,0.00010958,2]
[352626491,1739206238925,-634.31476415,0.00010958,2]
[352626492,1739206238935,-500.0,0.00010958,2]
[352626493,1739206238944,-500.0,0.00010958,2]
[352626494,1739206238953,-500.0,0.00010958,2]
[352626495,1739206238963,-500.0,0.00010958,2]
[352626496,1739206238972,-540.40618379,0.00010958,2]
[352626497,1739206238981,-500.0,0.00010958,2]
[352626498,1739206238991,-500.0,0.00010958,2]
[352626499,1739206239000,-500.0,0.00010958,2]
[352626500,1739206239009,-1214.4,0.00010958,2]
[352626501,1739206239019,-500.0,0.00010958,2]
[352626502,1739206239028,-500.0,0.00010958,2]
[352626503,1739206239039,-500.0,0.00010958,2]
[352626504,1739206239048,-500.0,0.00010958,2]
[352626505,1739206239058,-506.06,0.00010958,2]
[352626506,1739206239068,-649.2,0.00010958,2]
[352626507,1739206239082,-500.0,0.00010958,2]
[352626508,1739206239092,-500.0,0.00010958,2]
[352626509,1739206239105,-324.40267475,0.00010958,2]
[352626510,1739206239119,-175.59732525,0.00010958,2]
[352626511,1739206239128,-500.0,0.00010958,2]
[352626512,1739206239137,-500.0,0.00010958,2]
[352626513,1739206239258,-500.0,0.00010958,2]
[352626514,1739206239268,-500.0,0.00010958,2]
[352626515,1739206239277,-500.0,0.00010958,2]
[352626516,1739206239286,-500.0,0.00010958,2]
[352626517,1739206239295,-366.24917948,0.00010958,2]
[352626518,1739206239307,-7072.4483533,0.00010958,2]
[352626519,1739206239318,-500.0,0.00010958,2]
[352626520,1739206239328,-500.0,0.00011095,2]
[352626521,1739206239338,-500.0,0.00011095,2]
[352626522,1739206239347,-500.0,0.00011095,2]
[352626523,1739206239357,-500.0,0.00011095,2]
[352626524,1739206239367,-500.0,0.00011095,2]
[352626525,1739206239376,-500.0,0.00011095,2]
[352626526,1739206239385,-500.0,0.00011095,2]
[352626527,1739206239395,-500.0,0.00011095,2]
[352626528,1739206239405,-500.0,0.00011095,2]
[352626529,1739206239415,-500.0,0.00011095,2]
[352626530,1739206239424,-500.0,0.00011095,2]
[352626531,1739206239434,-500.0,0.00011095,2]
[352626532,1739206239443,-500.0,0.00011095,2]
[352626533,1739206239453,-500.0,0.00011095,2]
[352626534,1739206239463,-500.0,0.00011095,2]
[352626535,1739206239472,-500.0,0.00011095,2]
[352626536,1739206239483,-500.0,0.00011095,2]
[352626537,1739206239496,-500.0,0.00011095,2]
[352626538,1739206239506,-500.0,0.00011095,2]
[352626539,1739206239515,-500.0,0.00011095,2]
[352626540,1739206239525,-500.0,0.00011095,2]
[352626541,1739206239535,-506.44312328,0.00011095,2]
[352626542,1739206239545,-500.0,0.00011095,2]
[352626543,1739206239554,-500.0,0.00011095,2]
[352626544,1739206239564,-500.0,0.00011095,2]
[352626545,1739206239575,-397.41034051,0.00011095,2]
[352626546,1739206239585,-500.0,0.00011095,2]
[352626547,1739206239596,-500.0,0.00011095,2]
[352626548,1739206239606,-209.94905478,0.00011095,2]
[352626549,1739206239615,-500.0,0.00011095,2]
[352626550,1739206239624,-500.0,0.00011095,2]
[352626551,1739206239634,-500.0,0.00011095,2]
[352626552,1739206239644,-493.13,0.00011095,2]
[352626553,1739206239654,-1214.4,0.00011095,2]
[352626554,1739206239667,-500.0,0.00011095,2]
[352626555,1739206239680,-500.0,0.00011095,2]
[352626556,1739206239690,-500.0,0.00011095,2]
[352626557,1739206239700,-500.0,0.00011095,2]
[352626558,1739206239710,-500.0,0.00011095,2]
[352626559,1739206239719,-500.0,0.00011095,2]
[352626560,1739206239729,-500.0,0.00011095,2]
[352626561,1739206239739,-500.0,0.00011231,2]
[352626562,1739206239749,-500.0,0.00011231,2]
[352626563,1739206239758,-500.0,0.00011231,2]
[352626564,1739206239768,-500.0,0.00011231,2]
[352626565,1739206239777,-375.41858959,0.00011231,2]
[352626566,1739206239787,-500.0,0.00011232,2]
[352626567,1739206239796,-500.0,0.00011232,2]
[352626568,1739206239806,-500.0,0.00011232,2]
[352626569,1739206239816,-500.0,0.00011232,2]
[352626570,1739206239826,-500.0,0.00011232,2]
[352626571,1739206239835,-500.0,0.00011232,2]
[352626572,1739206239845,-500.0,0.00011232,2]
[352626573,1739206239854,-500.0,0.00011232,2]
[352626574,1739206239863,-500.0,0.00011232,2]
[352626575,1739206239873,-500.0,0.00011232,2]
[352626576,1739206239883,-500.0,0.00011232,2]
[352626577,1739206239892,-500.0,0.00011232,2]
[352626578,1739206239902,-500.0,0.00011232,2]
[352626579,1739206239912,-500.0,0.00011232,2]
[352626580,1739206239924,-615.54,0.00011232,2]
[352626581,1739206239935,-409.72909827,0.00011232,2]
[352626582,1739206239944,-500.0,0.00011232,2]
[352626583,1739206239954,-311.8502777,0.00011232,2]
[352626584,1739206239964,-500.0,0.00011232,2]
[352626585,1739206239973,-169.76692919,0.00011232,2]
[352626586,1739206239983,-538.31182848,0.00011232,2]
[352626587,1739206239993,-675.22676822,0.00011232,2]
[352626588,1739206240006,-539.17323178,0.00011232,2]
[352626590,1739206240016,-173.25,0.00011232,2]
[352626591,1739206240025,-500.0,0.00011232,2]
[352626592,1739206240035,-500.0,0.00011232,2]
[352626593,1739206240045,-183.56,0.00011232,2]
[352626594,1739206240054,-500.0,0.00011232,2]
[352626595,1739206240065,-500.0,0.00011232,2]
[352626597,1739206240079,-205.77937334,0.00011232,2]
[352626605,1739206240646,-500.0,0.00010958,2]
[352626606,1739206240656,-500.0,0.00011095,2]
[352626607,1739206240666,-291.93062666,0.00011232,2]
[352626608,1739206240675,-500.0,0.00011232,2]
[352626609,1739206240685,-500.0,0.00011362,2]
[352626610,1739206240696,-98.04582274,0.00011369,2]
[352626985,1739206246877,-500.0,0.00010958,2]
[352626987,1739206246886,-513.77,0.00011095,2]
[352626989,1739206246895,-85.01417726,0.00011369,2]
[352626991,1739206246904,-469.03,0.00011369,2]
[352626993,1739206246913,-500.0,0.00011369,2]
[352626995,1739206246922,-500.0,0.00011369,2]
[352626997,1739206246932,-500.0,0.00011369,2]
[352626999,1739206246942,-500.0,0.00011369,2]
[352627001,1739206246951,-500.0,0.00011369,2]
[352627003,1739206246961,-500.0,0.00011369,2]
[352627005,1739206246973,-500.0,0.00011369,2]
[352627007,1739206246983,-500.0,0.00011369,2]
[352627009,1739206246995,-1214.4,0.00011369,2]
[352627012,1739206247006,-500.0,0.00011369,2]
[352627015,1739206247017,-500.0,0.00011369,2]
[352627018,1739206247028,-500.0,0.00011369,2]
[352627021,1739206247038,-644.71475478,0.00011369,2]
[352627023,1739206247049,-500.0,0.00011369,2]
[352627025,1739206247059,-598.26,0.00011506,2]
[352627028,1739206247072,-349.04,0.00011506,2]
[352627031,1739206247083,-500.0,0.00011506,2]
[352627034,1739206247094,-500.0,0.00011506,2]
[352627036,1739206247105,-500.0,0.00011506,2]
[352627038,1739206247115,-500.0,0.00011506,2]
[352627040,1739206247126,-500.0,0.00011506,2]
[352627042,1739206247137,-1214.4,0.00011506,2]
[352627044,1739206247149,-500.0,0.00011506,2]
[352627047,1739206247161,-500.0,0.00011506,2]
[352627049,1739206247173,-440.60998487,0.00011506,2]
[352627051,1739206247185,-250.0,0.00011547,2]
[352627053,1739206247195,-500.0,0.00011587,2]
[352627055,1739206247206,-500.0,0.00011643,2]
[352627058,1739206247217,-500.0,0.00011643,2]
[352627060,1739206247229,-436.88570483,0.00011643,2]
[352627062,1739206247240,-515.40881795,0.00011643,2]
[352627064,1739206247252,-500.0,0.00011643,2]
[352627066,1739206247263,-1214.4,0.00011643,2]
[352627069,1739206247274,-500.0,0.00011643,2]
[352627071,1739206247284,-500.0,0.00011643,2]
[352627073,1739206247296,-500.0,0.0001178,2]
[352627075,1739206247307,-500.0,0.0001178,2]
[352627077,1739206247319,-500.0,0.0001178,2]
[352627079,1739206247329,-1214.4,0.0001178,2]
[352627081,1739206247341,-500.0,0.0001178,2]
[352627084,1739206247352,-500.0,0.0001178,2]
[352627086,1739206247363,-500.0,0.00011917,2]
[352627088,1739206247374,-500.0,0.00011917,2]
[352627090,1739206247385,-500.0,0.00011917,2]
[352627092,1739206247396,-1214.4,0.00011917,2]
[352627094,1739206247407,-500.0,0.00011917,2]
[352627097,1739206247418,-500.0,0.00011917,2]
[352627099,1739206247428,-542.59672408,0.00012054,2]
[352627101,1739206247438,-500.0,0.00012054,2]
[352627103,1739206247447,-500.0,0.00012054,2]
[352627105,1739206247457,-1214.4,0.00012054,2]
[352627107,1739206247468,-500.0,0.00012054,2]
[352627109,1739206247479,-500.0,0.00012054,2]
[352627111,1739206247488,-500.40957167,0.00012135,2]
[352627113,1739206247498,-500.0,0.00012191,2]
[352627116,1739206247510,-500.0,0.00012191,2]
[352627118,1739206247520,-1214.4,0.00012191,2]
[352627120,1739206247532,-500.0,0.00012191,2]
[352627122,1739206247543,-500.0,0.00012191,2]
[352627124,1739206247554,-500.0,0.00012328,2]
[352627127,1739206247566,-571.14914691,0.00012328,2]
[352627129,1739206247578,-1214.4,0.00012328,2]
[352627131,1739206247589,-500.0,0.00012328,2]
[352627133,1739206247601,-500.0,0.00012328,2]
[352627135,1739206247612,-354.8426056,0.00012329,2]
[352627138,1739206247624,-354.8426056,0.00012329,2]
[352627140,1739206247636,-354.8426056,0.00012329,2]
[352627142,1739206247648,-354.8426056,0.00012329,2]
[352627144,1739206247659,-500.0,0.00012465,2]
[352627146,1739206247670,-1214.4,0.00012465,2]
[352627148,1739206247681,-500.0,0.00012465,2]
[352627151,1739206247691,-500.0,0.00012465,2]
[352627153,1739206247701,-500.0,0.00012602,2]
[352627155,1739206247710,-500.0,0.00012602,3]
[352627157,1739206247720,-500.0,0.00012602,3]
[352627159,1739206247730,-500.0,0.00012602,3]
[352627161,1739206247740,-1214.4,0.00012602,2]
[352627163,1739206247750,-500.0,0.00012602,2]
[352627165,1739206247760,-500.0,0.00012602,2]
[352627167,1739206247772,-500.0,0.00012739,2]
[352627170,1739206247783,-1214.4,0.00012739,2]
[352627172,1739206247796,-500.0,0.00012739,2]
[352627174,1739206247807,-500.0,0.00012739,2]
[352627175,1739206247818,-500.0,0.00012876,2]
[352627176,1739206247829,-1214.4,0.00012876,2]
[352627177,1739206247839,-235.0871638,0.00012876,2]
[352627178,1739206247849,-500.0,0.00012876,2]
[352627179,1739206247858,-500.0,0.00013013,2]
[352627180,1739206247869,-1214.4,0.00013013,2]
[352627181,1739206247879,-500.0,0.00013013,2]
[352627182,1739206247889,-215.839967,0.00013014,2]
[352627183,1739206247899,-154.604472,0.00013014,2]
[352627184,1739206247910,-154.604472,0.00013014,2]
[352627186,1739206247921,-215.839967,0.00013014,2]
[352627188,1739206247931,-215.839967,0.00013014,2]
[352627190,1739206247942,-154.604472,0.00013014,2]
[352627192,1739206247952,-154.604472,0.00013014,2]
[352627195,1739206247963,-215.839967,0.00013014,2]
[352627197,1739206247973,-154.604472,0.00013014,2]
[352627199,1739206247983,-215.839967,0.00013014,2]
[352627201,1739206247994,-155.0060311,0.00013014,2]
[352627203,1739206248004,-215.5382145,0.00013014,2]
[352627205,1739206248016,-500.0,0.0001315,2]
[352627207,1739206248027,-1214.4,0.0001315,2]
[352627210,1739206248039,-500.0,0.0001315,2]
[352627212,1739206248051,-220.354733,0.00013287,2]
[352627214,1739206248062,-1214.4,0.00013287,2]
[352627216,1739206248074,-500.0,0.00013287,2]
[352627218,1739206248088,-354.8426056,0.0001337,2]
[352627220,1739206248099,-155.5163702,0.0001337,2]
[352627222,1739206248109,-500.0,0.00013385,2]
[352627224,1739206248122,-1214.4,0.00013424,2]
[352627226,1739206248133,-500.0,0.00013424,2]
[352627228,1739206248143,-150.0,0.0001346,2]
[352627230,1739206248153,-1969.0,0.0001346,2]
[352627233,1739206248164,-538.0,0.0001346,2]
[352627235,1739206248175,-2294.0,0.0001346,2]
[352627237,1739206248186,-150.22,0.0001346,2]
[352627239,1739206248196,-150.0,0.0001346,2]
[352627241,1739206248208,-396.0,0.0001346,2]
[352627243,1739206248220,-248.318,0.0001346,2]
[352627246,1739206248230,-1214.4,0.00013561,2]
[352627248,1739206248242,-500.0,0.00013561,2]
[352627250,1739206248253,-182.156,0.00013601,2]
[352627252,1739206248264,-151.0,0.00013676,2]
[352627254,1739206248275,-151.0,0.00013676,2]
[352627256,1739206248286,-151.0,0.00013676,2]
[352627258,1739206248298,-151.0,0.00013676,2]
[352627260,1739206248310,-1214.4,0.00013698,2]
[352627262,1739206248320,-500.0,0.00013698,2]
[352627264,1739206248331,-450.133734,0.00013699,2]
[352627267,1739206248342,-159.997474,0.00013699,2]
[352627269,1739206248354,-403.18560564,0.00013699,2]
[352627271,1739206248365,-1214.4,0.00013835,2]
[352627273,1739206248378,-500.0,0.00013835,2]
[352627275,1739206248389,-306.0,0.00013863,2]
[352627277,1739206248400,-13055.08231728,0.00013876,2]
[352627279,1739206248411,-1214.4,0.00013972,2]
[352627281,1739206248422,-500.0,0.00013972,2]
[352627283,1739206248435,-1214.43694494,0.00014109,2]
[352627286,1739206248446,-393.25,0.00014109,2]
[352627288,1739206248458,-1931.38,0.000142,2]
[352627290,1739206248469,-201.43,0.00014241,2]
[352627292,1739206248481,-354.8426056,0.00014247,2]
[352627294,1739206248493,-354.8426056,0.00014247,2]
[352627311,1739206248505,-354.8426056,0.00014247,2]
[352627313,1739206248661,-153.976,0.0001425,2]
[352627315,1739206248671,-354.8426056,0.00014329,2]
[352627317,1739206248681,-354.8426056,0.00014329,2]
[352627319,1739206248691,-354.8426056,0.00014329,2]
[352627321,1739206248701,-354.8426056,0.00014329,2]
[352627323,1739206248711,-354.8426056,0.00014329,2]
[352627325,1739206248721,-708.4517515,0.00014329,2]
[352627327,1739206248732,-151.0,0.000144,2]
[352627329,1739206248742,-732.15998162,0.00014455,2]
[352627331,1739206248753,-155.0,0.00014483,2]
[352627334,1739206248763,-155.0,0.00014483,2]
[352627335,1739206248773,-155.0,0.00014483,2]
[352627338,1739206248783,-156.98,0.00014483,2]
[352627339,1739206248793,-151.0,0.000145,2]
[352627341,1739206248803,-732.15998162,0.00014555,2]
[352627344,1739206248812,-22.34593572,0.00014655,2]
[352627346,1739206248827,-709.8140459,0.00014655,2]
[352627348,1739206248838,-151.0,0.000147,2]
[352627350,1739206248847,-180.708347,0.000147,4]
[352627352,1739206248856,-151.0,0.00014729,2]
[352627354,1739206248866,-1207.4021071,0.00014739,2]
[352627797,1739206735759,-400.0,0.0001643,120]
[352627824,1739207201088,-176.44026546,0.00010112,2]
[352627825,1739207225094,-3337.92094433,0.00010112,2]
[352627826,1739207225115,-162.0726293,0.00010215,2]
[352627827,1739207225136,-176.44026546,0.00010585,2]
[352627828,1739207225164,-197.41028394,0.00010585,2]
[352627829,1739207225186,-400.0,0.00010685,2]
[352627830,1739207225210,-300.0,0.0001094,2]
[352627831,1739207225232,-6982.78359541,0.00010941,2]
[352627832,1739207226082,-455.91393737,0.00010941,2]
[352627833,1739207226105,-414.04867786,0.00010958,2]
[352627834,1739207226126,-500.0,0.00010958,2]
[352627835,1739207226152,-500.0,0.00010958,2]
[352627836,1739207226174,-500.0,0.00010958,2]
[352627837,1739207226196,-500.0,0.00010958,2]
[352627838,1739207226218,-500.0,0.00010958,2]
[352627839,1739207226239,-509.97,0.00010958,2]
[352627840,1739207226260,-500.0,0.00010958,2]
[352627841,1739207226281,-504.68950702,0.00010958,2]
[352627842,1739207226302,-500.0,0.00010958,2]
[352627843,1739207226493,-169.14377305,0.00010958,2]
[352627844,1739207226515,-500.0,0.00010958,2]
[352627845,1739207226538,-500.0,0.00010958,2]
[352627846,1739207226560,-500.0,0.00010958,2]
[352627847,1739207226582,-500.0,0.00010958,2]
[352627848,1739207226604,-500.0,0.00010958,2]
[352627849,1739207226625,-500.0,0.00010958,2]
[352627850,1739207226649,-500.0,0.00010958,2]
[352627851,1739207226671,-500.0,0.00010958,2]
[352627852,1739207226693,-500.0,0.00010958,2]
[352627853,1739207226714,-500.0,0.00010958,2]
[352627854,1739207226736,-500.0,0.00010958,2]
[352627855,1739207226757,-500.0,0.00010958,2]
[352627856,1739207226778,-500.0,0.00010958,2]
[352627857,1739207226801,-480.68397232,0.00010958,2]
[352627858,1739207236082,-19.31602768,0.00010958,2]
[352627859,1739207236103,-500.0,0.00010958,2]
[352627860,1739207236123,-500.0,0.00010958,2]
[352627861,1739207236145,-576.63726669,0.00010958,2]
[352627862,1739207236168,-82.09245433,0.00010958,2]
[352627940,1739207432038,-247.33483864,0.00010957,2]
[352627941,1739207432048,-500.0,0.00010958,2]
[352627942,1739207432057,-151.91,0.00010958,2]
[352627943,1739207432068,-160.75941291,0.00010958,2]
[352627944,1739207432077,-500.0,0.00010958,2]
[352627945,1739207432087,-500.0,0.00010958,2]
[352627947,1739207432097,-500.0,0.00010958,2]
[352627949,1739207432106,-428.83133185,0.00010958,2]
[352627950,1739207432115,-500.0,0.00010958,2]
[352627951,1739207432124,-500.0,0.00010958,2]
[352627953,1739207432134,-500.0,0.00011094,2]
[352627955,1739207432143,-500.0,0.00011095,2]
[352627957,1739207432152,-500.0,0.00011095,2]
[352627959,1739207432161,-562.83,0.00011095,2]
[352627961,1739207432170,-580.47,0.00011095,2]
[352627963,1739207432179,-500.0,0.00011095,2]
[352627965,1739207432189,-500.0,0.00011095,2]
[352627967,1739207432198,-500.0,0.00011095,2]
[352627969,1739207432207,-256.75055101,0.00011095,2]
[352627971,1739207432220,-243.24944899,0.00011095,2]
[352627973,1739207432229,-256.75055101,0.00011095,2]
[352628443,1739207437895,-243.24944899,0.00011095,2]
[352628444,1739207437906,-500.0,0.00011095,2]
[352628445,1739207437915,-627.6906511,0.00011095,2]
[352628446,1739207437925,-500.0,0.00011095,2]
[352628447,1739207437934,-205.78,0.00011095,2]
[352628448,1739207437943,-297.92129841,0.00011095,2]
[352628449,1739207437953,-500.0,0.00011095,2]
[352628450,1739207437962,-647.98979366,0.00011095,2]
[352628451,1739207437971,-500.0,0.00011095,2]
[352628452,1739207437980,-500.0,0.00011095,2]
[352628453,1739207437989,-500.0,0.00011231,2]
[352628454,1739207437998,-500.0,0.00011232,2]
[352628455,1739207438007,-500.0,0.00011232,2]
[352628456,1739207438016,-500.0,0.00011232,2]
[352628458,1739207438025,-500.0,0.00011232,2]
[352628460,1739207438035,-500.0,0.00011232,2]
[352628462,1739207438044,-500.0,0.00011232,2]
[352628464,1739207438054,-500.0,0.00011232,2]
[352628466,1739207438063,-500.0,0.00011232,2]
[352628468,1739207438073,-417.90754567,0.00011232,2]
[352628470,1739207438083,-352.01020634,0.00011232,2]
[352628472,1739207438092,-500.0,0.00011368,2]
[352628474,1739207438102,-399.29,0.00011369,2]
[352628476,1739207438112,-500.0,0.00011369,2]
[352628478,1739207438122,-456.24,0.00011369,2]
[352628480,1739207438131,-392.02,0.00011369,2]
[352628482,1739207438140,-500.0,0.00011505,2]
[352628483,1739207438150,-182.62,0.00011506,2]
[352628484,1739207438159,-21522.6217213,0.00011615,2]
[352628485,1739207438169,-500.0,0.00011642,2]
[352628486,1739207438178,-500.0,0.00011779,2]
[352628487,1739207438187,-317.2185176,0.00011879,2]
[352628488,1739207438197,-500.0,0.00011916,2]